bitfinex/quotes_SOLUSD_20240825
["timestamp","ask_amount","ask_price","bid_price","bid_amount"]
[1724583518905,16.2534,156.95,156.86,6.66095851]
[1724583519287,6.6272,156.93,156.86,6.66095851]
[1724583520704,6.6272,156.93,156.87,20.0]
[1724583526405,15.0355,156.92,156.87,20.0]
[1724583526779,15.0355,156.92,156.84,26.66175501]
[1724583526985,15.0355,156.92,156.84,33.63905827]
[1724583527435,15.0355,156.92,156.85,1.27476571]
[1724583527605,15.0355,156.92,156.86,1.27466637]
[1724583527919,15.0355,156.92,156.86,21.27466637]
[1724583528316,15.0355,156.92,156.86,28.25196963]
[1724583528623,6.6272,156.93,156.87,6.97730326]
[1724583528907,6.6272,156.93,156.88,20.0]
[1724583534317,6.6272,156.93,156.89,1.27449495]
[1724583535586,15.0355,156.96,156.9,6.97730326]
[1724583535792,15.0355,156.96,156.91,20.0]
[1724583537817,15.0355,156.96,156.92,1.27425122]
[1724583538319,15.0355,156.96,156.91,20.0]
[1724583538525,15.0355,156.96,156.88,22.29358973]
[1724583539105,15.0355,156.96,156.88,29.27089299]
[1724583539418,15.0355,156.96,156.89,6.97730326]
[1724583539601,15.0355,156.96,156.9,20.0]
[1724583541735,15.0355,156.96,156.88,2.29358973]
[1724583541905,15.0355,156.96,156.87,20.0]
[1724583542328,15.0355,156.96,156.87,26.97730326]
[1724583542631,15.0355,156.96,156.88,6.97730326]
[1724583542923,15.0355,156.96,156.89,20.0]
[1724583549952,15.0355,156.96,156.9,8.25165139]
[1724583550233,15.0355,156.96,156.91,20.0]
[1724583550417,15.0355,156.96,156.92,1.27434655]
[1724583553753,15.0355,156.96,156.93,1.27432285]
[1724583562350,6.1518,156.97,156.93,20.0]
[1724583564640,6.1518,156.97,156.9,22.21982988]
[1724583564872,6.1518,156.97,156.89,20.0]
[1724583564873,6.1518,156.97,156.89,40.0]
[1724583565037,6.1518,156.97,156.9,20.0]
[1724583565862,6.1518,156.97,156.91,45.0]
[1724583566160,6.1518,156.97,156.92,20.0]
[1724583568543,6.1518,156.97,156.93,1.27409855]
[1724583575470,6.1518,156.97,156.92,20.0]
[1724583575852,6.1518,156.97,156.93,1.2739919]
[1724583577262,6.1518,156.97,156.93,66.2739919]
[1724583577474,15.0722,157.0,156.94,20.0]
[1724583577648,15.0722,157.0,156.95,1.27386248]
[1724583577845,15.0722,157.0,156.96,1.2738618]
[1724583578049,15.0722,157.0,156.96,66.2738618]
[1724583578764,15.0722,157.0,156.96,86.2738618]
[1724583578971,15.0722,157.0,156.96,85.0]
[1724583579162,15.0722,157.0,156.96,65.0]
[1724583579992,15.0722,157.0,156.96,20.0]
[1724583580179,15.0722,157.0,156.92,39.19773191]
[1724583580180,15.0722,157.0,156.93,20.0]
[1724583580380,15.0722,157.0,156.93,2.21240003]
[1724583580559,15.0722,157.0,156.92,32.93251667]
[1724583581681,15.0722,157.0,156.93,20.0]
[1724583583279,15.0722,157.0,156.94,1.27394885]
[1724583596169,15.0722,157.0,156.93,20.0]
[1724583598602,15.0722,157.0,156.94,1.27391667]
[1724583598779,15.0722,157.0,156.93,20.0]
[1724583601309,16.4185,156.98,156.93,20.0]
[1724583604911,6.1104,156.97,156.93,20.0]
[1724583605200,15.1207,156.94,156.87,6.28594776]
[1724583605703,15.1207,156.94,156.87,12.93674267]
[1724583606504,15.1207,156.94,156.88,1.2745905]
[1724583606677,15.1207,156.94,156.88,7.56053826]
[1724583608103,15.1207,156.94,156.89,25.50142557]
[1724583608279,15.1207,156.94,156.9,5.50135404]
[1724583608482,15.1207,156.94,156.91,24.22698522]
[1724583608683,15.1207,156.94,156.92,25.50135455]
[1724583608883,15.1207,156.94,156.93,4.22689696]
[1724583609286,15.1207,156.94,156.91,24.22689696]
[1724583609486,15.1207,156.94,156.92,5.50126572]
[1724583609801,15.1207,156.94,156.93,20.0]
[1724583610414,15.1207,156.94,156.93,24.22632503]
[1724583610581,6.1104,156.95,156.93,24.22632503]
[1724583610780,6.1104,156.95,156.94,5.5005088]
[1724583610997,6.1104,156.95,156.94,20.0]
[1724583611208,6.1104,156.95,156.94,24.22632503]
[1724583611605,6.1104,156.95,156.94,4.22632503]
[1724583611788,6.1104,156.95,156.93,5.50049663]
[1724583611989,6.1104,156.95,156.94,24.22632503]
[1724583613294,6.1104,156.95,156.94,4.22632503]
[1724583613483,6.1104,156.95,156.92,4.22632503]
[1724583613683,6.1104,156.95,156.93,4.22632503]
[1724583613907,6.1104,156.95,156.94,4.22632503]
[1724583614110,6.1104,156.95,156.92,4.22632503]
[1724583614317,6.1104,156.95,156.93,4.22632503]
[1724583614613,6.1104,156.95,156.94,4.22632503]
[1724583614805,21.2311,156.95,156.89,4.22632503]
[1724583614981,21.2311,156.95,156.86,4.98609485]
[1724583614982,21.2311,156.95,156.9,4.22632503]
[1724583615180,21.2311,156.95,156.91,4.22632503]
[1724583615487,21.2311,156.95,156.86,4.98609485]
[1724583615488,21.2311,156.95,156.88,4.22632503]
[1724583615689,21.2311,156.95,156.89,4.22694935]
[1724583615885,21.2311,156.95,156.9,4.22694935]
[1724583616102,21.2311,156.95,156.88,4.22694935]
[1724583616297,21.2311,156.95,156.89,4.22694935]
[1724583616511,21.2311,156.95,156.9,4.22694935]
[1724583616804,21.2311,156.95,156.88,4.22694935]
[1724583617004,21.2311,156.95,156.89,4.22694935]
[1724583617201,21.2311,156.95,156.9,4.22694935]
[1724583617522,21.2311,156.95,156.89,4.22694935]
[1724583617816,21.2311,156.95,156.9,4.22694935]
[1724583618000,21.2311,156.95,156.89,4.22694935]
[1724583618818,21.2311,156.95,156.87,4.22694935]
[1724583619919,21.2311,156.95,156.87,24.22694935]
[1724583620205,21.2311,156.95,156.88,4.22694935]
[1724583620418,21.2311,156.95,156.88,24.22694935]
[1724583620716,21.2311,156.95,156.89,4.22694935]
[1724583620884,21.2311,156.95,156.89,24.22694935]
[1724583621085,21.2311,156.95,156.89,20.0]
[1724583621308,21.2311,156.95,156.9,11.78777319]
[1724583621500,21.2311,156.95,156.91,65.0]
[1724583621815,22.9269,157.05,156.92,38.05256114]
[1724583622123,22.9269,157.05,156.93,70.50113515]
[1724583622417,22.9269,157.05,156.94,4.22723007]
[1724583622597,22.9269,157.05,156.95,1.27394171]
[1724583622922,22.9269,157.05,156.96,1.27394171]
[1724583623128,22.9269,157.05,156.96,5.50117178]
[1724583623307,22.9269,157.05,156.97,20.0]
[1724583624023,22.9269,157.05,156.96,1.27394171]
[1724583624400,22.9269,157.05,156.96,21.27394171]
[1724583624812,45.0,157.04,156.97,1.27389315]
[1724583626393,45.0,157.04,156.95,5.49954173]
[1724583626595,45.0,157.04,156.96,21.27389133]
[1724583626894,45.0,157.04,156.96,1.27389133]
[1724583627094,22.9269,157.05,156.96,1.27389133]
[1724583627292,22.9269,157.05,156.96,25.49952686]
[1724583627489,22.9269,157.05,156.97,4.22563553]
[1724583627692,22.9269,157.05,156.98,1.27362944]
[1724583627921,22.9269,157.05,156.99,1.27366023]
[1724583629108,22.9269,157.05,156.98,20.0]
[1724583629301,22.9269,157.05,156.99,1.2736635]
[1724583631312,22.9269,157.05,156.98,21.27378638]
[1724583631508,22.9269,157.05,156.99,1.27378844]
[1724583632205,22.9269,157.05,156.97,5.49892967]
[1724583632411,22.9269,157.05,156.98,20.0]
[1724583632609,22.9269,157.05,156.99,1.2736609]
[1724583633502,22.9269,157.05,156.99,21.2736609]
[1724583634719,22.9269,157.1,157.0,46.27352947]
[1724583634915,22.9269,157.1,157.01,20.0]
[1724583635131,22.9269,157.1,157.02,1.27334715]
[1724583635824,22.9269,157.1,157.02,5.49726384]
[1724583635999,22.9269,157.1,157.03,20.0]
[1724583636198,22.9269,157.1,157.04,1.27334716]
[1724583636395,22.9269,157.1,157.05,1.27320308]
[1724583637325,22.9269,157.1,157.04,20.0]
[1724583637834,22.9269,157.1,157.02,20.0]
[1724583638012,22.9269,157.1,157.03,46.27310533]
[1724583638214,6.5092,157.1,157.04,20.0]
[1724583638397,6.5092,157.1,157.05,1.27307421]
[1724583640616,22.9269,157.14,157.05,1.27307421]
[1724583640796,22.9269,157.14,157.05,46.27307421]
[1724583641013,22.9269,157.14,157.06,20.0]
[1724583641328,22.9269,157.14,157.07,1.27289104]
[1724583641515,3.4269,157.14,157.08,1.27288855]
[1724583642308,3.4269,157.14,157.08,21.27288855]
[1724583642708,0.8073251,157.15,157.08,21.27288855]
[1724583642909,0.8073251,157.15,157.08,20.0]
[1724583645804,0.8073251,157.15,157.09,45.0]
[1724583646003,0.8073251,157.15,157.1,20.0]
[1724583646218,0.8073251,157.15,157.11,1.27263193]
[1724583647825,0.8073251,157.15,157.1,20.0]
[1724583653523,0.8073251,157.15,157.07,20.0]
[1724583653840,0.8073251,157.15,157.06,20.0]
[1724583654723,0.8073251,157.15,157.07,45.0]
[1724583655124,0.8073251,157.15,157.08,20.0]
[1724583656618,0.8073251,157.15,157.09,1.27286124]
[1724583657246,0.8073251,157.15,157.1,30.0]
[1724583657548,0.8073251,157.15,157.11,21.2726036]
[1724583659161,0.8073251,157.15,157.11,51.2726036]
[1724583660264,0.8073251,157.15,157.11,50.0]
[1724583661565,0.8073251,157.15,157.12,1.27262624]
[1724583662047,0.8073251,157.15,157.1,20.0]
[1724583662556,0.8073251,157.15,157.11,45.0]
[1724583662746,0.8073251,157.15,157.12,20.0]
[1724583663569,0.8073251,157.15,157.13,1.27243399]
[1724583664148,0.8073251,157.15,157.13,46.27243399]
[1724583664349,0.8073251,157.15,157.14,20.0]
[1724583664765,0.8073251,157.15,157.14,65.0]
[1724583665562,0.8073251,157.15,157.14,95.0]
[1724583667947,0.8073251,157.15,157.14,96.27227064]
[1724583668149,0.8073251,157.15,157.14,66.27227064]
[1724583669763,0.8073251,157.15,157.14,65.0]
[1724583669969,0.8073251,157.15,157.14,66.27224766]
[1724583670459,0.8073251,157.15,157.14,96.27224766]
[1724583671467,0.8073251,157.15,157.14,95.0]
[1724583673558,0.8073251,157.15,157.14,50.0]
[1724583673761,0.8073251,157.15,157.14,20.0]
[1724583673973,0.8073251,157.15,157.13,20.0]
[1724583674275,0.8073251,157.15,157.14,1.27239453]
[1724583675061,0.8073251,157.15,157.14,46.27239453]
[1724583675258,0.8073251,157.15,157.14,65.0]
[1724583676464,0.8073251,157.15,157.14,71.28594776]
[1724583677185,6.5238,157.24,157.17,20.0]
[1724583677487,6.5238,157.24,157.18,65.0]
[1724583677869,6.5238,157.24,157.19,20.0]
[1724583678078,6.1733,157.28,157.2,65.0]
[1724583678691,6.1733,157.28,157.21,20.0]
[1724583678876,6.1733,157.28,157.22,65.0]
[1724583679079,0.8073251,157.31,157.23,1.27156232]
[1724583679390,0.8073251,157.31,157.22,65.0]
[1724583679763,0.8073251,157.31,157.23,31.27168989]
[1724583679966,0.8073251,157.31,157.24,21.27167406]
[1724583680793,0.8073251,157.31,157.2,20.0]
[1724583681087,15.4743,157.3,157.2,20.0]
[1724583681289,51.1733,157.29,157.15,26.28594776]
[1724583681464,15.4743,157.28,157.15,26.28594776]
[1724583682271,15.4743,157.28,157.16,1.27206201]
[1724583682591,15.4743,157.28,157.17,1.27206201]
[1724583682964,15.4743,157.28,157.17,21.27206201]
[1724583683167,15.4743,157.28,157.18,45.0]
[1724583683382,15.4743,157.28,157.19,1.27191369]
[1724583683572,15.4743,157.28,157.18,45.0]
[1724583683975,15.4743,157.28,157.19,20.0]
[1724583689499,15.4743,157.28,157.2,20.0]
[1724583689692,15.4743,157.28,157.21,46.27166022]
[1724583689873,15.4743,157.28,157.22,20.0]
[1724583690486,15.4743,157.28,157.19,20.0]
[1724583691198,15.4743,157.28,157.2,1.27183839]
[1724583692313,15.4743,157.28,157.2,46.27183839]
[1724583692507,15.4743,157.28,157.21,50.0]
[1724583692690,15.4743,157.28,157.22,1.27182137]
[1724583697389,15.4743,157.28,157.21,50.0]
[1724583698207,15.4743,157.28,157.21,20.0]
[1724583701010,15.4743,157.28,157.22,30.0]
[1724583701200,15.4743,157.28,157.23,20.0]
[1724583702217,15.4743,157.28,157.23,21.27178016]
[1724583702593,15.4743,157.28,157.23,20.0]
[1724583702813,15.4743,157.28,157.21,20.0]
[1724583704710,15.4743,157.28,157.22,1.27168834]
[1724583706309,15.4743,157.28,157.21,20.0]
[1724583707182,15.4743,157.28,157.22,30.0]
[1724583707620,15.4743,157.28,157.23,20.0]
[1724583708729,15.4743,157.28,157.24,1.27169072]
[1724583709917,15.4743,157.28,157.22,3.37329962]
[1724583710415,15.4743,157.28,157.22,7.59184522]
[1724583710616,15.4743,157.28,157.23,20.0]
[1724583710908,15.4743,157.28,157.24,7.59184542]
[1724583711122,15.4743,157.28,157.25,20.0]
[1724583711303,15.4743,157.28,157.26,1.2716079]
[1724583711907,15.4743,157.28,157.23,7.59124158]
[1724583712112,0.8073251,157.31,157.24,24.21826818]
[1724583712294,0.8073251,157.31,157.25,7.59102652]
[1724583712494,0.8073251,157.31,157.26,20.0]
[1724583713091,0.8073251,157.31,157.25,21.27139344]
[1724583713300,0.8073251,157.31,157.26,72.58971567]
[1724583713622,0.8073251,157.31,157.27,33.28891709]
[1724583713806,0.8073251,157.31,157.28,13.28891709]
[1724583714011,0.8073251,157.31,157.29,20.0]
[1724583714207,0.8073251,157.31,157.23,4.98609485]
[1724583714407,0.8073251,157.31,157.24,82.58870983]
[1724583714610,0.8073251,157.31,157.25,20.0]
[1724583714814,0.8073251,157.31,157.25,22.10063625]
[1724583715018,0.8073251,157.31,157.26,45.0]
[1724583715217,0.8073251,157.31,157.27,20.0]
[1724583715927,0.8073251,157.31,157.28,2.10046941]
[1724583716121,0.8073251,157.31,157.28,6.31772078]
[1724583716297,0.8073251,157.31,157.29,20.0]
[1724583716731,0.8073251,157.31,157.27,20.0]
[1724583716907,0.8073251,157.31,157.28,2.10047246]
[1724583717404,0.8073251,157.31,157.25,6.31772383]
[1724583717594,0.8073251,157.31,157.26,26.31772583]
[1724583717798,0.8073251,157.31,157.27,2.1004732]
[1724583718000,0.8073251,157.31,157.27,20.0]
[1724583718806,0.8073251,157.31,157.23,4.98609485]
[1724583719011,0.8073251,157.31,157.24,48.37246867]
[1724583719209,0.8073251,157.31,157.25,22.10099011]
[1724583719403,0.8073251,157.31,157.26,3.37234547]
[1724583719605,0.8073251,157.31,157.27,1.27137798]
[1724583720018,0.8073251,157.31,157.26,2.10099011]
[1724583720520,0.8073251,157.31,157.24,2.10099011]
[1724583720835,22.7198,157.3,157.24,2.10099011]
[1724583721011,22.7198,157.3,157.21,2.1015865]
[1724583721203,22.7198,157.3,157.22,2.1015865]
[1724583721402,22.7198,157.3,157.23,2.1015865]
[1724583721630,22.7198,157.3,157.21,32.1015865]
[1724583721831,22.7198,157.3,157.22,2.1015865]
[1724583722033,22.7198,157.3,157.23,2.1015865]
[1724583722209,22.7198,157.3,157.24,2.1015865]
[1724583722408,22.7198,157.3,157.22,20.0]
[1724583722712,22.7198,157.3,157.23,47.1015865]
[1724583722916,22.7198,157.3,157.24,2.1015865]
[1724583723143,22.7198,157.3,157.24,22.1015865]
[1724583723340,22.7198,157.3,157.25,2.1015865]
[1724583726544,22.7198,157.3,157.21,20.0]
[1724583726545,22.7198,157.3,157.22,2.1015865]
[1724583726711,22.7198,157.3,157.23,2.1015865]
[1724583726910,22.7198,157.3,157.24,2.1015865]
[1724583727211,22.7198,157.3,157.22,2.10138602]
[1724583727536,22.7198,157.3,157.23,2.10138602]
[1724583727722,22.7198,157.3,157.24,2.10138602]
[1724583727926,22.7198,157.3,157.23,6.28594776]
[1724583728219,22.7198,157.3,157.24,67.10138602]
[1724583728435,22.7198,157.3,157.25,2.10138602]
[1724583728806,22.7198,157.3,157.26,1.59141768]
[1724583729128,22.7198,157.3,157.27,3.6928037]
[1724583729424,22.7198,157.3,157.28,1.59141768]
[1724583729729,22.7198,157.3,157.29,1.59141768]
[1724583731308,0.8073251,157.31,157.29,1.59141768]
[1724583731508,0.8073251,157.31,157.3,1.59141768]
[1724583736743,0.8073251,157.31,157.3,1.59110742]
[1724583738438,0.8073251,157.31,157.3,21.59110742]
[1724583739849,0.8073251,157.31,157.3,20.0]
[1724583740054,0.8073251,157.31,157.3,21.59110606]
[1724583740559,0.8073251,157.31,157.3,22.86222628]
[1724583742455,0.8073251,157.31,157.3,21.59110606]
[1724583745728,0.8073251,157.31,157.3,67.86213478]
[1724583746262,0.8073251,157.31,157.3,21.59110606]
[1724583746428,0.8073251,157.31,157.3,1.59110606]
[1724583747136,0.8073251,157.31,157.3,21.59110606]
[1724583747337,0.8073251,157.31,157.3,30.46876781]
[1724583747654,0.8073251,157.31,157.3,1.59110606]
[1724583749736,0.8073251,157.31,157.27,20.0]
[1724583750054,0.8073251,157.31,157.28,1.59089168]
[1724583750240,0.8073251,157.31,157.29,1.59089168]
[1724583750440,0.8073251,157.31,157.3,1.59089168]
[1724583757960,0.8073251,157.31,157.3,21.59089168]
[1724583758673,0.8073251,157.31,157.3,31.59089168]
[1724583758869,0.8073251,157.31,157.3,21.59089168]
[1724583759066,0.8073251,157.31,157.3,103.18709168]
[1724583759381,16.5161,157.42,157.3,116.42324342]
[1724583759670,16.5161,157.42,157.31,66.59089168]
[1724583759867,16.5161,157.42,157.32,1.59089168]
[1724583760046,16.5161,157.42,157.33,1.59089168]
[1724583760370,16.5161,157.42,157.34,1.59089168]
[1724583760551,45.0,157.41,157.35,1.59089168]
[1724583760745,45.0,157.41,157.33,1.27098972]
[1724583760746,45.0,157.41,157.36,1.59089168]
[1724583760947,45.0,157.41,157.33,1.27098972]
[1724583761245,45.0,157.41,157.34,1.5906232]
[1724583761440,45.0,157.41,157.35,1.5906232]
[1724583761647,45.0,157.41,157.36,1.5906232]
[1724583761874,45.0,157.41,157.33,1.27098972]
[1724583762169,45.0,157.41,157.34,1.59062239]
[1724583762374,45.0,157.41,157.35,1.59062239]
[1724583762570,45.0,157.41,157.36,1.59062239]
[1724583762750,45.0,157.41,157.32,1.27098956]
[1724583762951,45.0,157.41,157.33,1.5906135]
[1724583763262,45.0,157.41,157.34,1.5906135]
[1724583763462,45.0,157.41,157.35,1.5906135]
[1724583763668,16.5161,157.42,157.31,20.0]
[1724583763669,16.5161,157.42,157.36,1.5904791]
[1724583763850,16.5161,157.42,157.37,1.5904787]
[1724583764060,16.5161,157.42,157.32,1.59066395]
[1724583764373,16.5161,157.42,157.33,1.59066395]
[1724583764556,16.5161,157.42,157.34,1.59066395]
[1724583764756,16.5161,157.42,157.35,1.59066395]
[1724583764958,16.5161,157.42,157.31,20.0]
[1724583765158,45.0,157.41,157.32,1.59062327]
[1724583765391,6.5377,157.4,157.32,1.59062327]
[1724583765564,6.5377,157.4,157.33,1.59062327]
[1724583765765,6.5377,157.4,157.34,1.59062327]
[1724583765966,6.5377,157.4,157.35,1.59062327]
[1724583766186,6.5377,157.4,157.31,20.0]
[1724583766494,6.5377,157.4,157.32,1.59064369]
[1724583766661,6.5377,157.4,157.33,1.59064369]
[1724583766991,6.5377,157.4,157.34,1.59064369]
[1724583767154,6.5377,157.4,157.35,1.59064369]
[1724583767355,6.5377,157.4,157.31,20.0]
[1724583767580,6.5377,157.4,157.32,1.59064307]
[1724583767782,6.5377,157.4,157.33,1.59064307]
[1724583767958,6.5377,157.4,157.34,1.59064307]
[1724583768164,6.5377,157.4,157.35,1.59064307]
[1724583768362,6.5377,157.4,157.31,20.0]
[1724583768584,6.5377,157.4,157.32,1.59062339]
[1724583768780,6.5377,157.4,157.33,1.59062339]
[1724583769080,6.5377,157.4,157.34,1.59062339]
[1724583769285,6.5377,157.4,157.35,2.86140662]
[1724583769486,6.5377,157.4,157.35,1.27078323]
[1724583769684,6.5377,157.4,157.31,20.0]
[1724583769685,16.5161,157.42,157.33,16.651]
[1724583769894,16.5161,157.42,157.34,22.86101514]
[1724583770079,16.5161,157.42,157.35,1.59032506]
[1724583770390,16.5161,157.42,157.36,2.86101666]
[1724583770558,16.5161,157.42,157.37,1.59032506]
[1724583770761,16.5161,157.42,157.38,1.59028828]
[1724583770991,16.5161,157.42,157.36,1.2706916]
[1724583771167,6.5377,157.44,157.37,1.59022806]
[1724583771369,6.5377,157.44,157.38,2.86070415]
[1724583771688,6.5377,157.44,157.39,2.86070736]
[1724583771893,17.3044251,157.46,157.36,20.0]
[1724583772195,17.3044251,157.46,157.37,1.59021763]
[1724583772398,17.3044251,157.46,157.38,1.59021763]
[1724583772570,17.3044251,157.46,157.39,1.59021763]
[1724583772771,17.3044251,157.46,157.34,20.0]
[1724583772970,17.3044251,157.46,157.35,1.59023109]
[1724583773166,45.0,157.45,157.36,1.59023109]
[1724583773468,45.0,157.45,157.37,1.59023109]
[1724583773672,45.0,157.45,157.38,1.59023109]
[1724583773875,45.0,157.45,157.34,20.0]
[1724583774095,45.0,157.45,157.35,1.59026729]
[1724583774287,45.0,157.45,157.36,1.59026729]
[1724583774487,6.5377,157.44,157.34,20.0]
[1724583774795,6.5377,157.44,157.34,28.87511439]
[1724583775099,6.5377,157.44,157.35,1.59033088]
[1724583775282,45.0,157.43,157.36,1.59033088]
[1724583775482,16.4971,157.42,157.33,1.59068701]
[1724583775803,45.0,157.41,157.34,1.59068701]
[1724583776097,45.0,157.41,157.35,1.59068701]
[1724583776496,16.4971,157.42,157.35,1.59068701]
[1724583776873,16.4971,157.42,157.36,1.59068701]
[1724583778590,16.4971,157.42,157.34,1.27078971]
[1724583778792,16.4971,157.42,157.34,5.48640736]
[1724583778996,16.4971,157.42,157.35,20.0]
[1724583779206,16.4971,157.42,157.36,1.27078964]
[1724583780788,45.0,157.41,157.35,20.0]
[1724583781086,45.0,157.41,157.34,4.21561765]
[1724583781289,45.0,157.41,157.33,20.0]
[1724583781514,45.0,157.41,157.35,4.2157621]
[1724583781819,45.0,157.41,157.33,26.96768958]
[1724583781820,45.0,157.41,157.33,20.0]
[1724583782021,45.0,157.41,157.32,20.0]
[1724583782199,16.4971,157.42,157.32,20.0]
[1724583784220,16.4971,157.42,157.32,40.0]
[1724583788819,16.4971,157.42,157.33,61.47561886]
[1724583789014,6.5377,157.44,157.34,20.0]
[1724583789322,6.5377,157.44,157.35,1.27066919]
[1724583789490,6.5377,157.44,157.34,40.0]
[1724583789812,6.5377,157.44,157.35,46.27056281]
[1724583790121,17.2658251,157.46,157.35,45.0]
[1724583790299,17.2658251,157.46,157.36,20.0]
[1724583792117,17.2658251,157.46,157.35,20.0]
[1724583792320,17.2658251,157.46,157.36,65.0]
[1724583794027,17.2658251,157.46,157.36,20.0]
[1724583794326,45.0,157.45,157.37,1.27049425]
[1724583795037,45.0,157.45,157.35,1.27056244]
[1724583795540,45.0,157.45,157.34,20.0]
[1724583796237,6.106,157.44,157.35,1.27057138]
[1724583796409,45.0,157.43,157.33,15.2049]
[1724583797711,45.0,157.43,157.34,20.0]
[1724583799906,16.4585,157.42,157.32,12.92545043]
[1724583800112,45.0,157.41,157.32,12.92545043]
[1724583800318,45.0,157.41,157.33,1.27089324]
[1724583801311,16.4585,157.42,157.33,21.27089324]
[1724583801511,16.4585,157.42,157.33,20.0]
[1724583804625,16.4585,157.42,157.33,40.0]
[1724583804919,16.4585,157.42,157.34,45.0]
[1724583805251,16.4585,157.42,157.35,20.0]
[1724583806637,16.4585,157.42,157.36,4.04502584]
[1724583806826,16.4585,157.42,157.37,4.04502584]
[1724583807028,16.4585,157.42,157.35,20.0]
[1724583807339,16.4585,157.42,157.36,4.04512636]
[1724583808911,16.4585,157.42,157.35,4.04512534]
[1724583809120,16.4585,157.42,157.36,4.04512534]
[1724583809354,16.4585,157.42,157.37,4.04512534]
[1724583809539,16.4585,157.42,157.34,20.0]
[1724583809731,16.4585,157.42,157.35,4.04509265]
[1724583809931,16.4585,157.42,157.36,4.04509265]
[1724583810253,16.4585,157.42,157.37,4.04509265]
[1724583810455,16.4585,157.42,157.34,20.0]
[1724583810654,16.4585,157.42,157.35,4.04509087]
[1724583810850,16.4585,157.42,157.34,20.0]
[1724583810851,16.4585,157.42,157.36,4.04509087]
[1724583811023,16.4585,157.42,157.35,4.04587374]
[1724583811228,16.4585,157.42,157.36,4.04587374]
[1724583811556,16.4585,157.42,157.34,20.0]
[1724583811730,16.4585,157.42,157.35,4.04556876]
[1724583812060,16.4585,157.42,157.34,20.0]
[1724583818236,16.4585,157.42,157.35,1.27084984]
[1724583819259,16.4585,157.42,157.34,20.0]
[1724583821965,16.4585,157.42,157.33,6.64035161]
[1724583822131,16.4585,157.42,157.29,41.49084776]
[1724583822132,51.1296,157.41,157.29,41.49084776]
[1724583822336,51.1296,157.41,157.3,14.1986013]
[1724583822555,6.1296,157.41,157.31,20.0]
[1724583822755,6.1296,157.41,157.31,26.28594776]
[1724583823356,6.1296,157.41,157.32,26.28594776]
[1724583838464,6.1296,157.41,157.33,7.53599524]
[1724583838784,6.1296,157.41,157.34,20.0]
[1724583839095,6.1296,157.41,157.35,1.27063429]
[1724583840008,6.1296,157.41,157.34,20.0]
[1724583840478,6.1296,157.41,157.33,20.0]
[1724583841805,6.1296,157.41,157.34,20.05622488]
[1724583841990,6.1296,157.41,157.35,20.05622488]
[1724583842296,6.1296,157.41,157.36,20.05622488]
[1724583842495,6.1296,157.41,157.37,20.05622488]
[1724583842696,6.1296,157.41,157.38,11.18149605]
[1724583842908,6.1296,157.41,157.38,11.1814916]
[1724583843070,6.1296,157.41,157.39,4.21508059]
[1724583843396,6.1296,157.41,157.36,15.84113495]
[1724583843600,6.1296,157.41,157.37,20.05621494]
[1724583843895,6.1296,157.41,157.38,11.18148962]
[1724583844194,6.1296,157.41,157.39,4.21507999]
[1724583844400,6.1296,157.41,157.36,15.84113535]
[1724583844578,6.1296,157.41,157.33,20.0]
[1724583845898,6.3951,157.39,157.32,5.28265395]
[1724583846070,45.0,157.38,157.3,6.64115822]
[1724583846271,45.0,157.38,157.27,11.56860171]
[1724583846495,6.3951,157.36,157.27,18.21138208]
[1724583847209,6.3951,157.44,157.31,20.0]
[1724583847410,6.3951,157.44,157.32,45.01162967]
[1724583847576,6.3951,157.44,157.32,50.57595028]
[1724583848080,6.3951,157.44,157.33,21.27080023]
[1724583848278,6.3951,157.44,157.34,14.31073504]
[1724583848479,6.3951,157.44,157.35,21.27075873]
[1724583848687,6.3951,157.44,157.36,8.74641443]
[1724583849004,6.3951,157.44,157.37,21.27073928]
[1724583849297,6.3951,157.44,157.37,30.01715371]
[1724583849473,6.3951,157.44,157.37,28.74641443]